Cogmind - Beta 14 @@@ ROGUE MODE // 2024.08.18 @ 19:23:18 Player: jimmyl Result: Destroyed by B-99 Colossus with Linear Accelerator Performance ------------- Evolutions (9) 4500 Regions Visited (18) 3600 Robots Destroyed (88) 440 Value Destroyed (2849) 2849 Prototype IDs (41) 820 Alien Tech Used (0) 0 Bonus (901) 901 TOTAL SCORE: 13110 Bonus ------- High Alert Combat Kills 208 Follower Combat Kills 93 Aligned with FarCom 300 Met Data Miner 300 Cogmind --------- Core Integrity 0/1600 Matter 183/300 Energy 100/100 System Corruption 4% Temperature Cool (0) Movement Core (50) Location -1/Access Parts ------- > --- POWER (2) -------- (None) > --- PROPULSION (5) --- (None) > --- UTILITY (16) ----- Machine Analyzer Enhanced Optical Array Advanced Signal Interpreter Improved Terrain Scan Processor Hacking Suite > --- WEAPON (2) ------- (None) > --- INVENTORY (5) ---- Railgun Peak State ------------ > --- POWER ------------ Light Antimatter Reactor > --- PROPULSION ------- Xenon Bombardment Thruster Nuclear Pulse Thruster Field Propulsion Array > --- UTILITY ---------- Machine Analyzer Enhanced Optical Array Advanced Signal Interpreter Improved Terrain Scan Processor Advanced Terrain Scan Processor Hacking Suite Hacking Suite Advanced Hacking Suite Advanced Hacking Suite Improved System Shield Improved System Shield Advanced System Shield Combat Drone Bay > --- WEAPON ----------- Mini Grenade Launcher Power Sword > --- INVENTORY -------- Advanced Terrain Scanner Hacking Suite Supersonic Drone Bay Railgun [Rating: 107] Favorites ----------- Power Reinforced Ion Engine Engine Reinforced Ion Engine Power Core Micro Nuclear Core Reactor Light Antimatter Reactor Propulsion Light Treads Treads Light Treads Leg Aluminum Leg Wheel Armored Wheel Hover Unit Antigrav Array Flight Unit Surge Thruster Utility Improved Terrain Scan Processor Device Improved Heat Sink Storage Medium Storage Unit Processor Improved Terrain Scan Processor Hackware Hacking Suite Protection Reactive Plating Weapon Ion Cannon Energy Gun Medium Laser Energy Cannon Ion Cannon Ballistic Gun Light Assault Rifle Ballistic Cannon Assault Cannon Launcher Mini Grenade Launcher Slashing Weapon Power Sword Build | -11 -10 -10 -10 -9 -8 -8 -8 -8 -6 -6 -6 -6 -5 -5 -4 -3 -2 -1 ------- Run | Yrd Mat Min Exi Min Mat Sto Rec Scr Fac Low Low Dat Pro Fac Fac Res Res Acc Slots Evolved 18 | . . . . . 4 . . . 4 . . . . 2 2 2 2 2 Power 1 | . . . . . . . . . 1 . . . . . . . . . Propulsion 3 | . . . . . 2 . . . . . . . . . . . 1 . Utility 14 | . . . . . 2 . . . 3 . . . . 2 2 2 1 2 Weapon . | . . . . . . . . . . . . . . . . . . . Parts Attached 110 | . 7 . . 1 21 13 3 4 21 . 1 . 1 7 5 6 12 8 Power 13 | . 1 . . . 2 1 . . 2 . 1 . . . 1 1 3 1 Engine 6 | . 1 . . . 2 1 . . 2 . . . . . . . . . Core 3 | . . . . . . . . . . . 1 . . . 1 1 . . Reactor 4 | . . . . . . . . . . . . . . . . . 3 1 Propulsion 33 | . 2 . . . 4 4 1 2 8 . . . 1 1 1 1 6 2 Treads 10 | . 2 . . . 4 3 . 1 . . . . . . . . . . Leg . | . . . . . . . . . . . . . . . . . . . Wheel 4 | . . . . . . 1 1 1 1 . . . . . . . . . Hover 3 | . . . . . . . . . . . . . . . . . 1 2 Flight 16 | . . . . . . . . . 7 . . . 1 1 1 1 5 . Utility 36 | . 3 . . . 5 2 1 . 8 . . . . 6 3 4 1 3 Device 12 | . 1 . . . 1 . . . 4 . . . . 1 1 1 1 2 Storage 1 | . 1 . . . . . . . . . . . . . . . . . Processor 9 | . 1 . . . 1 1 . . 3 . . . . 1 . 2 . . Hackware 9 | . . . . . . . . . 1 . . . . 4 2 1 . 1 Protection 5 | . . . . . 3 1 1 . . . . . . . . . . . Artifact . | . . . . . . . . . . . . . . . . . . . Weapon 28 | . 1 . . 1 10 6 1 2 3 . . . . . . . 2 2 Energy Gun 8 | . 1 . . 1 2 3 1 . . . . . . . . . . . Energy Cannon 10 | . . . . . 5 1 . 2 1 . . . . . . . . 1 Ballistic Gun 3 | . . . . . . 1 . . . . . . . . . . 1 1 Ballistic Cannon 1 | . . . . . . 1 . . . . . . . . . . . . Launcher 5 | . . . . . 3 . . . 1 . . . . . . . 1 . Special Weapon . | . . . . . . . . . . . . . . . . . . . Impact Weapon . | . . . . . . . . . . . . . . . . . . . Slashing Weapon 1 | . . . . . . . . . 1 . . . . . . . . . Piercing Weapon . | . . . . . . . . . . . . . . . . . . . Special Melee Weapon . | . . . . . . . . . . . . . . . . . . . Unidentified Prototypes 8 | . . . . . 1 4 . . 2 . . . . . . . 1 . Parts Lost 44 | . 1 . . . 4 1 2 . . . 3 . 2 . 2 1 14 14 Power 5 | . . . . . . . . . . . 1 . . . . 1 1 2 Propulsion 15 | . . . . . 2 . 1 . . . 1 . 1 . . . 6 4 Utility 17 | . . . . . 2 . 1 . . . 1 . 1 . 2 . 5 5 Weapon 7 | . 1 . . . . 1 . . . . . . . . . . 2 3 Highest Loss Streak 13 | . 1 . . . 2 1 1 . . . 3 . 1 . 2 1 13 9 To Critical Strikes . | . . . . . . . . . . . . . . . . . . . Average Slot Usage (%) 83 | . 95 100 100 100 86 93 80 86 77 86 75 73 72 78 84 76 76 31 Engine 7 | . 14 14 14 14 9 8 9 9 5 6 1 . . . . . . . Treads 11 | . 12 28 28 28 27 26 10 12 . . . . . . . . . . Leg 1 | . 15 . . . . . . . . . . . . . . . . . Wheel 2 | . . . . . . 5 8 12 5 . . . . . . . . . Flight 6 | . . . . . . . . . 19 26 21 20 20 17 15 13 12 . Device 8 | . . . . . 8 9 9 9 15 20 14 13 12 7 9 3 2 1 Storage 6 | . 14 14 14 14 9 9 9 9 . . . . . . . . . . Processor 13 | . 10 14 14 14 6 7 9 9 15 20 20 20 20 23 20 16 21 16 Hackware 5 | . . . . . . . . . 5 6 6 6 6 17 26 28 28 2 Protection 3 | . . . . . 7 8 7 9 . . . . . . . . . . Energy Gun 4 | . 13 14 14 14 5 3 8 . . . . . . . . . . 1 Energy Cannon 5 | . . . . . 11 10 8 16 4 . . . . . . . . 1 Ballistic Gun 2 | . 14 14 14 14 . 3 . . . . . . . . . . . . Slashing Weapon 1 | . . . . . . . . . 1 6 6 6 6 5 5 4 3 . Peak Build Rating 107 | . 8 8 9 8 24 26 25 27 47 47 47 42 42 69 85 92 107 76 Average Rating 34 | . 6 7 8 8 20 23 23 24 36 47 42 42 41 59 80 83 92 54 On Entrance 32 | 6 6 7 8 8 8 20 25 18 27 47 47 42 42 37 69 84 92 33 Naked Turns . | . . . . . . . . . . . . . . . . . . . Heaviest Build 43 | 13 18 18 18 18 43 43 37 39 18 11 11 11 11 11 16 15 22 20 Greatest Support 80 | 20 40 40 40 40 80 60 40 24 17 19 11 11 15 25 24 24 39 52 Greatest Overweight (x) 3 | . . . . . . 2 2 3 1 3 . . . . . . . 3 Average Overweight (x) . | . . . . . . . 1 2 . . . . . . . . . . Largest Inventory Capacity 10 | . 10 10 10 10 10 10 10 10 10 5 5 5 5 5 5 5 5 5 Average Capacity 7 | . 8 10 10 10 10 10 10 10 5 5 5 5 5 5 5 5 5 5 Most Carried 10 | . 8 7 8 7 10 10 10 10 10 5 5 5 5 5 5 5 5 4 Average Carried 6 | . 6 6 6 6 9 9 10 9 4 5 5 5 4 2 4 4 4 3 Final Capacity 10 | 8 10 10 10 10 10 10 10 10 5 5 5 5 5 5 5 5 5 5 Final Carried 10 | 6 6 7 6 6 10 10 10 9 5 5 5 5 4 5 4 4 4 1 Class Distribution -------------------- 46% | Mutant 12% | Scavenger-Scout 11% | Scavenger-Mutant 11% | Scout 11% | Wizard-Scout 4% | Hacker-Scout Dominant Class ---------------- Mutant | -10/Materials Mutant | -10/Mines Mutant | -10/Exiles Mutant | -9/Mines Mutant | -8/Materials Scavenger-Mutant | -8/Storage Mutant | -8/Recycling Mutant | -8/Scraptown Scout | -6/Factory Scavenger-Scout | -6/Lower Caves Scavenger-Scout | -6/Lower Caves Scavenger-Scout | -6/Data Miner Scavenger-Scout | -5/Proximity Caves Hacker-Scout | -5/Factory Wizard-Scout | -4/Factory Wizard-Scout | -3/Research Wizard-Scout | -2/Research Scout | -1/Access Resources | -11 -10 -10 -10 -9 -8 -8 -8 -8 -6 -6 -6 -6 -5 -5 -4 -3 -2 -1 ----------- Run | Yrd Mat Min Exi Min Mat Sto Rec Scr Fac Low Low Dat Pro Fac Fac Res Res Acc Matter Collected 1320 | 154 161 . . 14 202 254 69 67 42 188 15 . 10 20 34 . 84 6 Remotely . | . . . . . . . . . . . . . . . . . . . Salvage Created 3240 | . 412 . . . 1281 962 170 . 42 75 . . . 20 34 35 209 . Parts 205 | . 23 . . . 83 56 8 . 5 2 . . . 4 2 3 19 . Haulers Intercepted 3 | . . . . . . 3 . . . . . . . . . . . . Recyclers Shooed 3 | . 1 . . . . 2 . . . . . . . . . . . . Parts Field Recycled . | . . . . . . . . . . . . . . . . . . . Retrieved Matter . | . . . . . . . . . . . . . . . . . . . Parts Self-Destructed 15 | . . . . . . . . . . 5 7 . 3 . . . . . Prevented . | . . . . . . . . . . . . . . . . . . . Kills | -11 -10 -10 -10 -9 -8 -8 -8 -8 -6 -6 -6 -6 -5 -5 -4 -3 -2 -1 ------- Run | Yrd Mat Min Exi Min Mat Sto Rec Scr Fac Low Low Dat Pro Fac Fac Res Res Acc Combat Hostiles Destroyed 59 | . 9 . . . 25 14 3 . . 1 . . . . . . 7 . Melee 1 | . . . . . . . . . . 1 . . . . . . . . Guns 15 | . 9 . . . 2 2 2 . . . . . . . . . . . Cannons 31 | . . . . . 18 12 1 . . . . . . . . . . . AOE 9 | . . . . . 2 . . . . . . . . . . . 7 . Classes Destroyed 14 | . 6 . . . 5 2 . . . 1 . . . . . . . . Worker 3 | . . . . . 1 2 . . . . . . . . . . . . Builder 5 | . 1 . . . 3 1 . . . . . . . . . . . . Tunneler 2 | . . . . . 1 . . . . . . . . . . . 1 . Hauler 3 | . . . . . . 3 . . . . . . . . . . . . Recycler 2 | . . . . . . 2 . . . . . . . . . . . . Mechanic 1 | . 1 . . . . . . . . . . . . . . . . . Operator 9 | . 2 . . . . 2 . . 2 . . . . 1 . 1 1 . Watcher 4 | . 1 . . . 1 . . . . . . . . . 1 . 1 . Swarmer 16 | . 3 . . . 3 3 . . . . . . . . . . 7 . Grunt 28 | . 6 . . . 16 6 . . . . . . . . . . . . Brawler 1 | . . . . . 1 . . . . . . . . . . . . . Sentry 12 | . . . . . 4 5 3 . . . . . . . . . . . Hunter 1 | . . . . . 1 . . . . . . . . . . . . . Mutant 1 | . . . . . . . . . . 1 . . . . . . . . Best Kill Streak 6 | . 5 . . . 5 6 2 . 1 1 . . . 1 1 1 4 . Combat Bots Only 4 | . 4 . . . 3 2 2 . . 1 . . . . . . 4 . Max Kills in Single Turn 4 | . 1 . . . 2 2 1 . 1 1 . . . 1 1 1 4 . Gunslinging . | . . . . . . . . . . . . . . . . . . . Exploded 4 | . . . . . 1 . . . . . . . . . . . 4 . Melee 1 | . . . . . . . . . . 1 . . . . . . . . Uniques/NPCs Destroyed . | . . . . . . . . . . . . . . . . . . . Combat | -11 -10 -10 -10 -9 -8 -8 -8 -8 -6 -6 -6 -6 -5 -5 -4 -3 -2 -1 -------- Run | Yrd Mat Min Exi Min Mat Sto Rec Scr Fac Low Low Dat Pro Fac Fac Res Res Acc Hostile Shots Fired 641 | . 64 . . . 103 54 18 . 6 20 2 . 19 3 13 2 133 204 Missed 247 | . 10 . . . 27 12 6 . 5 8 1 . 13 . 8 2 71 84 Damage Taken 7685 | . 658 . . . 1093 592 148 . 5 191 78 . 126 58 120 95 1622 2899 Core 3090 | . 173 . . . 121 97 . . . 31 4 . 54 21 21 35 918 1615 Absorbed by Shields . | . . . . . . . . . . . . . . . . . . . Ignored by Resistances 63 | . . . . . 16 32 15 . . . . . . . . . . . Regen/Repaired (Parts) 79 | . . . . . . . . . . . . . . . . 79 . . Core Remaining (%) 75 | 100 . . . 30 . . . 60 . . . . 89 97 98 97 36 . Volleys Fired 226 | . 57 2 . . 79 55 11 . 13 . . . . . . . 4 5 Largest 2 | . 2 2 . . 2 2 2 . 1 . . . . . . . 1 2 Hottest 129 | . 70 70 . . 123 129 129 . 60 . . . . . . . 30 120 Shots Fired 420 | . 112 3 . . 152 108 22 . 13 . . . . . . . 4 6 Gun 200 | . 112 3 . . 24 47 11 . . . . . . . . . . 3 Cannon 209 | . . . . . 123 61 11 . 11 . . . . . . . . 3 Launcher 11 | . . . . . 5 . . . 2 . . . . . . . 4 . Special . | . . . . . . . . . . . . . . . . . . . Kinetic 101 | . 57 2 . . 1 40 . . . . . . . . . . . 1 Thermal 308 | . 55 1 . . 146 68 22 . 11 . . . . . . . . 5 Explosive 6 | . . . . . . . . . 2 . . . . . . . 4 . Electromagnetic 5 | . . . . . 5 . . . . . . . . . . . . . Robot Hit Streak 16 | . 12 . . . 10 16 7 . . . . . . . . . . . Robot Miss Streak 6 | . 4 4 . . 6 4 1 . . . . . . . . . 2 . Penetration Max . | . . . . . . . . . . . . . . . . . . . Secondary Targets 3 | . 3 . . . . . . . . . . . . . . . . . Max Gunslinging Chain 1 | . 1 . . . . . . . . . . . . . . . . . Shots Hit Robots 263 | . 65 . . . 87 77 17 . 2 5 . . . 1 4 2 3 . Core Hits 132 | . 27 1 . . 45 33 5 . 2 2 . . . . 2 1 14 . Critical Kills 1 | . . . . . 1 . . . . . . . . . . . . . Critical Parts Destroyed . | . . . . . . . . . . . . . . . . . . . Critical Strikes 11 | . 5 . . . 2 3 1 . . . . . . . . . . . Burn 10 | . 5 . . . 1 3 1 . . . . . . . . . . . Meltdown 1 | . . . . . 1 . . . . . . . . . . . . . Melee Attacks 46 | . . . . . . . . . 10 7 . . . 7 8 4 10 . Impact . | . . . . . . . . . . . . . . . . . . . Slashing 46 | . . . . . . . . . 10 7 . . . 7 8 4 10 . Piercing . | . . . . . . . . . . . . . . . . . . . Sneak Attacks . | . . . . . . . . . . . . . . . . . . . Combat Hostiles . | . . . . . . . . . . . . . . . . . . . Follow-up Attacks . | . . . . . . . . . . . . . . . . . . . Damage Inflicted 6470 | . 717 8 . . 2316 1560 320 . 109 231 . . . 48 186 141 814 20 Guns 1644 | . 717 . . . 236 535 156 . . . . . . . . . . . Cannons 2934 | . . . . . 1747 1024 163 . . . . . . . . . . . Explosions 1000 | . . . . . 330 . . . . . . . . . . . 670 . Melee 855 | . . . . . . . . . 109 231 . . . 48 186 141 140 . Ramming 37 | . . 8 . . 3 1 1 . . . . . . . . . 4 20 Kinetic 736 | . 255 . . . . 481 . . . . . . . . . . . . Thermal 3842 | . 462 . . . 1983 1078 319 . . . . . . . . . . . Explosive 670 | . . . . . . . . . . . . . . . . . 670 . Electromagnetic 330 | . . . . . 330 . . . . . . . . . . . . . Impact . | . . . . . . . . . . . . . . . . . . . Slashing 855 | . . . . . . . . . 109 231 . . . 48 186 141 140 . Piercing . | . . . . . . . . . . . . . . . . . . . Highest Corruption 4 | . . . . . 3 3 3 . . 1 1 1 1 . 1 . 2 4 Average Corruption 2 | . . . . . 2 3 3 . . 1 1 1 1 . 1 . 1 2 Corruption Purged . | . . . . . . . . . . . . . . . . . . . Corruption Blocked . | . . . . . . . . . . . . . . . . . . . Effects 36 | . . . . . 5 17 9 . . . 3 . 1 . . . 1 . Message Errors 8 | . . . . . . 4 4 . . . . . . . . . . . Matter Fused 8 | . . . . . 1 4 2 . . . 1 . . . . . . . Heat Flow Errors 6 | . . . . . 1 4 . . . . 1 . . . . . . . Energy Discharges 3 | . . . . . . 1 1 . . . . . . . . . 1 . Parts Rejected 1 | . . . . . . . 1 . . . . . . . . . . . Parts Fused 1 | . . . . . . 1 . . . . . . . . . . . . Data Loss (minor) 4 | . . . . . . 2 1 . . . 1 . . . . . . . Data Loss (major) 1 | . . . . . 1 . . . . . . . . . . . . . Misfires 1 | . . . . . 1 . . . . . . . . . . . . . Alerts 2 | . . . . . . 1 . . . . . . 1 . . . . . Weapon Failures 1 | . . . . . 1 . . . . . . . . . . . . . Overload Shots . | . . . . . . . . . . . . . . . . . . . Overflow Damage 223 | . . . . . 18 12 . . . . . . . 18 21 16 69 69 Projectiles 30 | . . . . . 18 12 . . . . . . . . . . . . Explosions 111 | . . . . . . . . . . . . . . . . . 42 69 Melee 82 | . . . . . . . . . . . . . . 18 21 16 27 . Knockbacks . | . . . . . . . . . . . . . . . . . . . Impact . | . . . . . . . . . . . . . . . . . . . Kinetic . | . . . . . . . . . . . . . . . . . . . Secondary . | . . . . . . . . . . . . . . . . . . . Self-Inflicted Damage 141 | . . . . . 14 . . . . . . . . . . . 35 92 Shots 3 | . . . . . 1 . . . . . . . . . . . 1 1 Rammed 10 | . . 1 . . 2 3 1 . . . . . . . . . 1 2 Targets Rammed 10 | . . 1 . . 2 3 1 . . . . . . . . . 1 2 Kicked . | . . . . . . . . . . . . . . . . . . . Crushed . | . . . . . . . . . . . . . . . . . . . Highest Temperature 346 | . 324 30 . . 316 290 198 . 346 . 167 . . . . . . 31 Average Temperature 78 | . 100 18 . . 67 65 80 . 183 . 97 . . . . . . 15 Received Heat Transfer 1710 | . 351 . . . 450 306 45 . . 57 12 . 21 . . . 72 396 Effects 3 | . . . . . . 3 . . . . . . . . . . . . Interference 3 | . . . . . . 3 . . . . . . . . . . . . Siege Activations . | . . . . . . . . . . . . . . . . . . . Robots Corrupted 2 | . . . . . 2 . . . . . . . . . . . . . Combat Hostiles 1 | . . . . . 1 . . . . . . . . . . . . . Parts Fried 1 | . . . . . 1 . . . . . . . . . . . . . Impact Corruptions . | . . . . . . . . . . . . . . . . . . . Robots Melted 2 | . . . . . 2 . . . . . . . . . . . . . Combat Hostiles 2 | . . . . . 2 . . . . . . . . . . . . . Parts Melted 25 | . 3 . . . 10 8 4 . . . . . . . . . . . Heat Transferred 7955 | . 1739 . . . 3404 2109 703 . . . . . . . . . . . Parts Sabotaged . | . . . . . . . . . . . . . . . . . . . Parts Stolen . | . . . . . . . . . . . . . . . . . . . Parts Stripped . | . . . . . . . . . . . . . . . . . . . Power Chain Reactions . | . . . . . . . . . . . . . . . . . . . Alert | -11 -10 -10 -10 -9 -8 -8 -8 -8 -6 -6 -6 -6 -5 -5 -4 -3 -2 -1 ------- Run | Yrd Mat Min Exi Min Mat Sto Rec Scr Fac Low Low Dat Pro Fac Fac Res Res Acc Peak Influence 674 | . 237 56 . . 607 638 278 . 125 . . . . 150 125 92 674 554 Initial 404 | . . 41 . . . 256 248 . . . . . . 59 73 15 51 404 Average 182 | . 122 48 . . 212 471 144 . 12 . . . . 86 31 62 301 447 Maximum Alert Level 2 | . 1 . . . 2 2 1 . . . . . . . . . 2 2 Low Security (%) 61 | . 77 100 . 100 53 . 58 . 100 . . . . 100 100 100 24 . Level 1 21 | . 22 . . . 31 29 41 . . . . . . . . . 46 22 Level 2 16 | . . . . . 14 70 . . . . . . . . . . 28 77 Level 3 . | . . . . . . . . . . . . . . . . . . . Level 4 . | . . . . . . . . . . . . . . . . . . . Level 5 . | . . . . . . . . . . . . . . . . . . . High Security . | . . . . . . . . . . . . . . . . . . . Max Security . | . . . . . . . . . . . . . . . . . . . Squads Dispatched 20 | . 2 . . . 4 2 . . 2 . . . . 3 . . 6 1 Investigation 7 | . . . . . 2 . . . 1 . . . . 2 . . 1 1 Extermination 2 | . . . . . . . . . . . . . . 1 . . 1 . Reinforcement 11 | . 2 . . . 2 2 . . 1 . . . . . . . 4 . Assault . | . . . . . . . . . . . . . . . . . . . Garrison . | . . . . . . . . . . . . . . . . . . . Intercept . | . . . . . . . . . . . . . . . . . . . Searches Triggered 1 | . . . . . . . . . . . . . . . . . . 1 Construction Impeded 1 | . . . . . 1 . . . . . . . . . . . . . Haulers Reinforced . | . . . . . . . . . . . . . . . . . . . Active Scanning Responses . | . . . . . . . . . . . . . . . . . . . Cargo Convoy Interrupts . | . . . . . . . . . . . . . . . . . . . Stealth | -11 -10 -10 -10 -9 -8 -8 -8 -8 -6 -6 -6 -6 -5 -5 -4 -3 -2 -1 --------- Run | Yrd Mat Min Exi Min Mat Sto Rec Scr Fac Low Low Dat Pro Fac Fac Res Res Acc Distress Signals 6 | . . . . . 5 . . . . . . . . . . . 1 . Communications Jammed . | . . . . . . . . . . . . . . . . . . . Distress Signals . | . . . . . . . . . . . . . . . . . . . Times Spotted 206 | . 19 2 . . 39 18 3 . 3 10 1 . 16 3 8 4 54 26 Peak Tracking Total 14 | . 3 1 . . 6 3 1 . 1 3 1 . 11 2 3 1 14 12 Tactical Retreats 29 | . 1 . . . 5 2 . . . 3 . . 3 . . . 9 6 Traps | -11 -10 -10 -10 -9 -8 -8 -8 -8 -6 -6 -6 -6 -5 -5 -4 -3 -2 -1 ------- Run | Yrd Mat Min Exi Min Mat Sto Rec Scr Fac Low Low Dat Pro Fac Fac Res Res Acc Traps Triggered 10 | . . . . . 6 2 . . . . . . . . . 1 1 . Indirectly 3 | . . . . . 3 . . . . . . . . . . . . . Trap Hack Attempts . | . . . . . . . . . . . . . . . . . . . Triggered . | . . . . . . . . . . . . . . . . . . . Disarmed . | . . . . . . . . . . . . . . . . . . . Reprogrammed . | . . . . . . . . . . . . . . . . . . . Reused . | . . . . . . . . . . . . . . . . . . . Traps Extracted . | . . . . . . . . . . . . . . . . . . . Installed . | . . . . . . . . . . . . . . . . . . . Triggered . | . . . . . . . . . . . . . . . . . . . Machines | -11 -10 -10 -10 -9 -8 -8 -8 -8 -6 -6 -6 -6 -5 -5 -4 -3 -2 -1 ---------- Run | Yrd Mat Min Exi Min Mat Sto Rec Scr Fac Low Low Dat Pro Fac Fac Res Res Acc Machines Disabled 14 | . . . . . 2 4 . . 2 1 . . . 1 1 1 1 1 Max in Single Turn 2 | . . . . . 2 1 . . 1 1 . . . 1 1 1 1 1 Energy Cycler 1 | . . . . . . . . . . . . . . . . . . 1 Machines Repaired . | . . . . . . . . . . . . . . . . . . . Machines Dismantled . | . . . . . . . . . . . . . . . . . . . Machines Sabotaged . | . . . . . . . . . . . . . . . . . . . Overloaded Fab Kills . | . . . . . . . . . . . . . . . . . . . Hacking | -11 -10 -10 -10 -9 -8 -8 -8 -8 -6 -6 -6 -6 -5 -5 -4 -3 -2 -1 --------- Run | Yrd Mat Min Exi Min Mat Sto Rec Scr Fac Low Low Dat Pro Fac Fac Res Res Acc Machines Accessed 32 | . 1 . 1 . 3 4 . . 4 . 2 2 . 6 1 3 2 3 Terminals 17 | . 1 . . . 2 4 . . 2 . . . . 4 1 2 1 . Fabricators 5 | . . . . . . . . . 1 . . . . 2 . . 1 1 Repair Stations 2 | . . . . . . . . . . . . . . . . 1 . 1 Recycling Units . | . . . . . . . . . . . . . . . . . . . Scanalyzers 2 | . . . . . 1 . . . 1 . . . . . . . . . Garrison Access 1 | . . . . . . . . . . . . . . . . . . 1 Total Hacks 108 | . 1 . 1 . 6 8 . . 13 . 5 21 . 14 8 16 9 6 Successful 71 | . . . 1 . 5 2 . . 9 . 5 21 . 6 5 9 6 2 Failed 37 | . 1 . . . 1 6 . . 4 . . . . 8 3 7 3 4 Catastrophic 12 | . 1 . . . . 1 . . . . . . . 5 . 3 . 2 Database Lockouts . | . . . . . . . . . . . . . . . . . . . Manual 33 | . 1 . 1 . . 2 . . 2 . . . . 7 7 8 5 . Terminals 51 | . 1 . . . 4 8 . . 6 . . . . 9 8 9 6 . Fabricators 14 | . . . . . . . . . 3 . . . . 5 . . 3 3 Repair Stations 9 | . . . . . . . . . . . . . . . . 7 . 2 Recycling Units . | . . . . . . . . . . . . . . . . . . . Scanalyzers 6 | . . . . . 2 . . . 4 . . . . . . . . . Garrison Access 1 | . . . . . . . . . . . . . . . . . . 1 Terminal Hacks 50 | . . . 1 . 3 2 . . 4 . 5 21 . 2 5 3 4 . Record 5 | . . . . . . . . . . . 4 . . . . 1 . . Part Schematic 16 | . . . . . . . . . 2 . . 13 . 1 . . . . Robot Schematic 5 | . . . . . . . . . . . . 5 . . . . . . Prototype ID Bank 3 | . . . . . . . . . . . . 3 . . . . . . Open Door 2 | . . . . . . 1 . . . . 1 . . . . . . . Level Access Points 3 | . . . . . . . . . . . . . . . 1 1 1 . Branch Access Points 1 | . . . . . 1 . . . . . . . . . . . . . Emergency Access Points 2 | . . . . . 1 . . . . . . . . . . . 1 . Machine Index 3 | . . . . . . . . . . . . . . . 1 1 1 . Terminal Index 1 | . . . . . 1 . . . . . . . . . . . . . Unreport Threat 2 | . . . . . . . . . . . . . . . 2 . . . Locate Traps 2 | . . . . . . . . . . . . . . 1 1 . . . Recall Investigation 1 | . . . . . . . . . . . . . . . . . 1 . Hauler Manifests 1 | . . . . . . . . . 1 . . . . . . . . . Zone Layout 2 | . . . . . . 1 . . 1 . . . . . . . . . Derelict Proto ID Bank 1 | . . . 1 . . . . . . . . . . . . . . . Fabricator Hacks 10 | . . . . . . . . . 3 . . . . 4 . . 2 1 Network Status 1 | . . . . . . . . . 1 . . . . . . . . . Load Schematic 5 | . . . . . . . . . 1 . . . . 2 . . 1 1 Build 4 | . . . . . . . . . 1 . . . . 2 . . 1 . Repair Station Hacks 7 | . . . . . . . . . . . . . . . . 6 . 1 Scan Component 3 | . . . . . . . . . . . . . . . . 3 . . Repair 3 | . . . . . . . . . . . . . . . . 3 . . Refit 1 | . . . . . . . . . . . . . . . . . . 1 Recycling Unit Hacks . | . . . . . . . . . . . . . . . . . . . Scanalyzer 4 | . . . . . 2 . . . 2 . . . . . . . . . Insert Component 2 | . . . . . 1 . . . 1 . . . . . . . . . Analyze 2 | . . . . . 1 . . . 1 . . . . . . . . . Garrison Access Hacks . | . . . . . . . . . . . . . . . . . . . Unauthorized Hacks . | . . . . . . . . . . . . . . . . . . . Terminals . | . . . . . . . . . . . . . . . . . . . Fabricators . | . . . . . . . . . . . . . . . . . . . Repair Stations . | . . . . . . . . . . . . . . . . . . . Recycling Units . | . . . . . . . . . . . . . . . . . . . Scanalyzers . | . . . . . . . . . . . . . . . . . . . Garrison Access . | . . . . . . . . . . . . . . . . . . . Data Cores Recovered 2 | . . . . . . . . . . . . . . 1 . 1 . . Used 1 | . . . . . . . . . . . . . . 1 . . . . Hacking Detections 21 | . 1 . . . 2 3 . . 4 . . . . 4 . 3 1 3 Full Trace Events 7 | . . . . . . 2 . . 1 . . . . 2 . . 1 1 Feedback Events . | . . . . . . . . . . . . . . . . . . . Feedback Blocked . | . . . . . . . . . . . . . . . . . . . Robot Schematics Acquired 5 | . . . . . . . . . . . . 5 . . . . . . Robots Built . | . . . . . . . . . . . . . . . . . . . Authchips . | . . . . . . . . . . . . . . . . . . . Time . | . . . . . . . . . . . . . . . . . . . Total Robot Build Rating . | . . . . . . . . . . . . . . . . . . . Part Schematics Acquired 17 | . . . . . 1 . . . 2 . . 13 . 1 . . . . Parts Built 5 | . . . . . . . . . 2 . . . . 2 . . 1 . Authchips . | . . . . . . . . . . . . . . . . . . . Time 240 | . . . . . . . . . 73 . . . . 111 . . 56 . Total Part Build Rating 25 | . . . . . . . . . 6 . . . . 13 . . 6 . Parts Repaired 3 | . . . . . . . . . . . . . . . . 3 . . Time 50 | . . . . . . . . . . . . . . . . 50 . . Parts Recycled . | . . . . . . . . . . . . . . . . . . . Recycled Matter . | . . . . . . . . . . . . . . . . . . . Retrieved Matter . | . . . . . . . . . . . . . . . . . . . Retrieved Components . | . . . . . . . . . . . . . . . . . . . Parts Scanalyzed 2 | . . . . . 1 . . . 1 . . . . . . . . . Part Schematics Acquired 1 | . . . . . 1 . . . . . . . . . . . . . Parts Damaged . | . . . . . . . . . . . . . . . . . . . Bothacking | -11 -10 -10 -10 -9 -8 -8 -8 -8 -6 -6 -6 -6 -5 -5 -4 -3 -2 -1 ------------ Run | Yrd Mat Min Exi Min Mat Sto Rec Scr Fac Low Low Dat Pro Fac Fac Res Res Acc Used RIF Installer . | . . . . . . . . . . . . . . . . . . . Robots Hacked . | . . . . . . . . . . . . . . . . . . . Non-combat . | . . . . . . . . . . . . . . . . . . . Combat . | . . . . . . . . . . . . . . . . . . . Robot Hacks Applied . | . . . . . . . . . . . . . . . . . . . Relay Couplers Released . | . . . . . . . . . . . . . . . . . . . Fabnet Peak Effective % . | . . . . . . . . . . . . . . . . . . . Robots Rewired 4 | . . . . . . . . . . 4 . . . . . . . . Allies Hacked . | . . . . . . . . . . . . . . . . . . . Hacks Repelled . | . . . . . . . . . . . . . . . . . . . Allies | -11 -10 -10 -10 -9 -8 -8 -8 -8 -6 -6 -6 -6 -5 -5 -4 -3 -2 -1 -------- Run | Yrd Mat Min Exi Min Mat Sto Rec Scr Fac Low Low Dat Pro Fac Fac Res Res Acc Total Allies 4 | . . . . . . . . . . 4 . . . . . . . . Largest Group 4 | . . . . . . . . . . 4 4 3 3 . . . . . Highest-Rated Group 124 | . . . . . . . . . . 124 124 93 93 . . . . . Highest-Rated Ally 31 | . . . . . . . . . . 31 31 31 31 . . . . . Total Orders 7 | . . . . . . . . . 3 . . . . 1 . . 2 1 EXPLORE 7 | . . . . . . . . . 3 . . . . 1 . . 2 1 Ally Attacks 35 | . . . . . . . . . . . 11 . 12 . . . 12 . Total Damage 566 | . . . . . . . . . . . 150 . 125 . . . 291 . Kills 3 | . . . . . . . . . . . 1 . 1 . . . 1 . Allies Corrupted . | . . . . . . . . . . . . . . . . . . . Allies Melted . | . . . . . . . . . . . . . . . . . . . Intel | -11 -10 -10 -10 -9 -8 -8 -8 -8 -6 -6 -6 -6 -5 -5 -4 -3 -2 -1 ------- Run | Yrd Mat Min Exi Min Mat Sto Rec Scr Fac Low Low Dat Pro Fac Fac Res Res Acc Robot Analysis Total . | . . . . . . . . . . . . . . . . . . . Derelict Logs Recovered 7 | . . 3 . 1 . . . . . . 2 . 1 . . . . . Drone Launches 7 | . . . . . . . . . 3 . . . . 1 . . 2 1 Drone Recoveries 4 | . . . . . . . . . 3 . . . . 1 . . . . Exploration | -11 -10 -10 -10 -9 -8 -8 -8 -8 -6 -6 -6 -6 -5 -5 -4 -3 -2 -1 ------------- Run | Yrd Mat Min Exi Min Mat Sto Rec Scr Fac Low Low Dat Pro Fac Fac Res Res Acc Turns Passed 8466 | . 670 279 342 253 1167 746 966 541 830 468 370 29 135 285 301 259 442 383 Spaces Moved 6767 | 1 353 166 213 147 459 310 466 433 608 546 493 75 302 438 321 215 715 506 Core 179 | . . . . . . . . . . 3 . . . . . . 37 139 Treads 1820 | . 151 166 213 147 459 309 367 8 . . . . . . . . . . Legs 203 | 1 202 . . . . . . . . . . . . . . . . . Wheels 549 | . . . . . . 1 99 425 24 . . . . . . . . . Hover 368 | . . . . . . . . . . . . . . . . . 1 367 Flight 3648 | . . . . . . . . . 584 543 493 75 302 438 321 215 677 . Fastest Speed 20 | 120 120 160 160 160 160 130 120 105 26 20 32 32 26 27 30 32 24 50 Average Speed 81 | 120 137 160 160 160 160 160 198 123 34 30 32 32 29 29 31 32 33 60 Slowest Speed 240 | 120 160 160 160 160 160 240 240 240 105 200 35 32 32 30 34 32 70 200 Overloaded Moves 201 | . . . . . . . . . . 22 . . 94 35 . . 50 . Propulsion Burnouts . | . . . . . . . . . . . . . . . . . . . Robots Hopped 15 | . . . . . . . . . . . . . 3 1 3 . 8 . Cave-ins Triggered . | . . . . . . . . . . . . . . . . . . . Exploration Rate (%) 42 | 2 55 63 60 30 42 43 95 34 21 59 61 68 61 43 15 8 27 28 Regions Visited 18 Branch Regions 10 Pre-discovered Areas 1 | . . . . . . . . . . . 1 . . . . . . . Known Exits Taken 9 | . 1 1 1 1 1 . . . . . . . . 1 1 1 1 . Unknown Exits Taken 9 | 1 . . . . . 1 1 1 1 1 1 1 1 . . . . . Scrap Searched 12 | . . . . 1 . . . 6 . 3 2 . . . . . . . Spaces Dug 24 | . . . . . 4 . . . 5 . . . . 4 2 . 6 3 Terrain Destroyed 157 | . . . . . 65 4 . . 21 . . . . 4 2 . 49 12 Melee 17 | . . . . . . . . . 5 . . . . 4 2 . 6 . Projectile 23 | . . . . . 16 4 . . . . . . . . . . . 3 AOE 117 | . . . . . 49 . . . 16 . . . . . . . 43 9 Terrain Rammed . | . . . . . . . . . . . . . . . . . . . Walls Destroyed . | . . . . . . . . . . . . . . . . . . . Machines Disabled . | . . . . . . . . . . . . . . . . . . . Actions | -11 -10 -10 -10 -9 -8 -8 -8 -8 -6 -6 -6 -6 -5 -5 -4 -3 -2 -1 --------- Run | Yrd Mat Min Exi Min Mat Sto Rec Scr Fac Low Low Dat Pro Fac Fac Res Res Acc Total 9216 | . 440 176 215 165 735 449 484 436 1202 836 703 79 345 582 505 396 890 578 Wait 1981 | . 16 7 . 17 158 57 . . 524 271 210 5 46 126 172 171 146 55 Move 6723 | . 352 165 212 146 459 309 465 432 607 545 492 74 295 435 314 214 701 506 Hop 13 | . . . . . . . . . . . . . 3 1 3 . 6 . Pick Up 34 | . 3 1 1 . 7 4 . . 8 . . . . 3 2 1 4 . Fast Attach 55 | . 2 . . . 10 10 3 3 5 . 1 . . 4 2 5 6 4 Attach 37 | . 3 . . . 2 2 . 1 12 . . . 1 3 3 1 5 4 Detach 10 | . 1 . . . . 1 1 . 4 . . . . 1 . . 1 1 Swap 18 | . 2 . . 1 9 1 . . 4 . . . . . . . 1 . Drop 52 | . 4 . 2 1 10 7 3 . 15 . . . . 2 1 . 6 1 Fire 226 | . 57 2 . . 79 55 11 . 13 . . . . . . . 4 5 Melee 46 | . . . . . . . . . 10 7 . . . 7 8 4 10 . Ram 2 | . . . . . . . . . . . . . . . . . . 2 Kick . | . . . . . . . . . . . . . . . . . . . Crush 6 | . . 1 . . 1 3 1 . . . . . . . . . . . Escape Stasis . | . . . . . . . . . . . . . . . . . . . Rewire 13 | . . . . . . . . . . 13 . . . . . . . . Trap . | . . . . . . . . . . . . . . . . . . . Miscellaneous . | . . . . . . . . . . . . . . . . . . . Route ------- -11/Scrapyard -10/Materials -10/Mines (discovered 2 exits: [*Mat] / *Exi) -10/Exiles -9/Mines -8/Materials (discovered 2 exits: *Sto x2) -8/Storage -8/Recycling (discovered 2 exits: *Fac / [*Scr]) -8/Scraptown -6/Factory (discovered 2 exits: *Fac / [*Low]) -6/Lower Caves -6/Lower Caves -6/Data Miner -5/Proximity Caves -5/Factory (discovered 3 exits: *Fac x3) -4/Factory (discovered 5 exits: *Res x4 / [Ext]) -3/Research (discovered 3 exits: *Res x3) -2/Research (discovered 5 exits: *Acc x3 / [*Tes x2]) -1/Access History --------- Turn | Location | Event 1 | -11/Scrapyard | Discovered new exit (range 0) 1 | -11/Scrapyard | Entered Materials 313 | -10/Materials | Build established: Mutant 465 | -10/Materials | Core integrity fell below 50% 503 | -10/Materials | Discovered new exit (range 16) 670 | -10/Materials | Identified exit to Mines 671 | -10/Materials | Entered Mines 691 | -10/Mines | Learned Materials emergency access door positions 768 | -10/Mines | Assembled infested the area 779 | -10/Mines | Found a damaged Exp. Sensor Array with a note attached 782 | -10/Mines | Found Prototype Device 788 | -10/Mines | Met 8R-AWN 828 | -10/Mines | Learned Materials stockpile data 833 | -10/Mines | Learned Materials terminal intel 891 | -10/Mines | Discovered new exit (range 12) 942 | -10/Mines | Discovered new exit (range 5) 948 | -10/Mines | Identified exit to Exiles 950 | -10/Mines | Entered Exiles 990 | -10/Exiles | Welcomed by 8R-AWN 1018 | -10/Exiles | Met EX-HEX 1067 | -10/Exiles | Met EX-BIN 1090 | -10/Exiles | Aligned with FarCom system 1091 | -10/Exiles | Given EX-Vault access code 1130 | -10/Exiles | Opened EX-Vault 1138 | -10/Exiles | Found Supersonic Drone Bay 1173 | -10/Exiles | Warned to stay clear of 0b10 Research branches 1220 | -10/Exiles | Met EX-DEC 1269 | -10/Exiles | Discovered new exit (range 14) 1290 | -10/Exiles | Identified exit to Mines 1292 | -10/Exiles | Left Exiles lab with Supersonic Drone Bay 1292 | -10/Exiles | Entered Mines 1384 | -9/Mines | Learned 2 Materials zone layouts 1530 | -9/Mines | Discovered new exit (range 9) 1543 | -9/Mines | Identified exit to Materials 1545 | -9/Mines | Entered Materials 1545 | -8/Materials | Evolved 4 slots: Propulsion x2, Utility x2 1549 | -8/Materials | Loaded intel: 11 terminal locations 1600 | -8/Materials | Identified exit to Storage 2669 | -8/Materials | Build established: Scavenger-Mutant 2712 | -8/Materials | Entered Storage 3453 | -8/Storage | Used back door to open Recycling access 3453 | -8/Storage | Discovered new exit (range 4) 3458 | -8/Storage | Entered Recycling 3680 | -8/Recycling | Build established: Mutant 3945 | -8/Recycling | Discovered new exit (range 15) 4394 | -8/Recycling | Scanned before Scraplab entrance 4412 | -8/Recycling | Entered Scraplab 4422 | -8/Recycling | Discovered new exit (range 3) 4424 | -8/Recycling | Entered Scraptown 4424 | -8/Scraptown | System corruption cleaned by C-Scrubber 4607 | -8/Scraptown | Turned away by UFD registrar 4630 | -8/Scraptown | Visited Comm Corps 4661 | -8/Scraptown | Visited Observation Area 4722 | -8/Scraptown | Visited Supply Room 4737 | -8/Scraptown | Visited Bundlers 4828 | -8/Scraptown | Visited Symbiants 4962 | -8/Scraptown | Discovered new exit (range 3) 4965 | -8/Scraptown | Entered Factory 4965 | -6/Factory | Evolved 4 slots: Power x1, Utility x3 5038 | -6/Factory | Discovered new exit (range 58) 5050 | -6/Factory | Discovered new exit (range 70) 5187 | -6/Factory | Fabricated Surge Thruster? 5382 | -6/Factory | Build established: Scout 5795 | -6/Factory | Entered Lower Caves 5833 | -6/Lower Caves | Encountered a Warlord checkpoint 6000 | -6/Lower Caves | Build established: Scavenger-Scout 6088 | -6/Lower Caves | Lost 3 allies 6174 | -6/Lower Caves | Attacked by a delusional Derelict stockpiling Unaware 6228 | -6/Lower Caves | Discovered new exit (range 5) 6263 | -6/Lower Caves | Entered another Lower Caves area 6263 | -6/Lower Caves | Accompanied by 4 allies 6308 | -6/Lower Caves | Learned Research emergency access door positions 6308 | -6/Lower Caves | Learned Extension stockpile data 6308 | -6/Lower Caves | Learned Extension security intel 6308 | -6/Lower Caves | Learned Armory security intel 6379 | -6/Lower Caves | Lost 3 parts (1p1n1u) 6396 | -6/Lower Caves | Encountered a Warlord checkpoint 6400 | -6/Lower Caves | Learned location of 1 exit from Factory 6591 | -6/Lower Caves | Discovered new exit (range 16) 6633 | -6/Lower Caves | Entered Data Miner 6633 | -6/Data Miner | Accompanied by 3 allies 6633 | -6/Data Miner | Discovered new exit (range 6) 6640 | -6/Data Miner | Met Data Miner 6650 | -6/Data Miner | Received God Mode back door access code from Data Miner 6662 | -6/Data Miner | Entered Proximity Caves 6662 | -5/Proximity Caves | Accompanied by 3 allies 6705 | -5/Proximity Caves | Attracted the attention of an 0b10 checkpoint 6730 | -5/Proximity Caves | Learned Factory machine intel 6787 | -5/Proximity Caves | Spotted B-75 Beast 6793 | -5/Proximity Caves | Discovered new exit (range 12) 6794 | -5/Proximity Caves | Attracted the attention of an 0b10 outpost 6797 | -5/Proximity Caves | Entered Factory 6797 | -5/Factory | Evolved 2 slots: Utility x2 6798 | -5/Factory | Identified exit to Factory 6799 | -5/Factory | Loaded intel: 253 machine locations 6819 | -5/Factory | Discovered exit to Factory (range 181) 6827 | -5/Factory | Discovered exit to Factory (range 91) 6947 | -5/Factory | Fabricated Field Propulsion Array (x1) 7064 | -5/Factory | Fabricated Adv. Hacking Suite (x1) 7082 | -5/Factory | Entered another Factory area 7082 | -4/Factory | Evolved 2 slots: Utility x2 7136 | -4/Factory | Identified exit to Research 7315 | -4/Factory | Discovered new exit (range 10) 7359 | -4/Factory | Spotted B-86 Titan 7383 | -4/Factory | Entered Research 7383 | -3/Research | Evolved 2 slots: Utility x2 7398 | -3/Research | Identified exit to Research 7401 | -3/Research | Build established: Wizard-Scout 7419 | -3/Research | Repaired Nuclear Pulse Thruster 7439 | -3/Research | Repaired Mic. Fission Core 7456 | -3/Research | Repaired Adv. Terrain Scanner 7642 | -3/Research | Entered another Research area 7642 | -2/Research | Evolved 2 slots: Propulsion x1, Utility x1 7652 | -2/Research | Identified exit to Access 7702 | -2/Research | Fabricated Combat Drone Bay (x1) 7938 | -2/Research | Discovered new exit (range 5) 7967 | -2/Research | Spotted B-90 Cyclops 8024 | -2/Research | Discovered new exit (range 15) 8066 | -2/Research | Core integrity fell below 50% 8084 | -2/Research | Entered Access 8084 | -1/Access | Evolved 2 slots: Utility x2 8114 | -1/Access | Lost 13 parts (1p5n5u2w) 8170 | -1/Access | Energy Cycler disabled 8207 | -1/Access | Lost 9 parts (2p2n3u2w) 8334 | -1/Access | Search patrols dispatched 8380 | -1/Access | Core integrity fell below 50% 8452 | -1/Access | Build established: Scout 8455 | -1/Access | Spotted B-99 Colossus 8455 | -1/Access | Spotted B-99 Colossus 8464 | -1/Access | Core integrity fell below 20% 8467 | -1/Access | Destroyed by B-99 Colossus with Linear Accelerator Last Messages --------------- results: 08457_ Garrison Access x1 08460_ Antigrav Array destroyed. 08460_ Knocked back. 08460_ Slug penetrates Wall. 08460_ Supersonic Drone Bay destroyed. 08460_ Slug penetrates Wall. 08461_ Antigrav Array destroyed. 08461_ Penetrated by Slug. 08461_ Slug penetrates Wall. 08461_ Penetrated by Slug. 08461_ Slug penetrates Wall. 08463_ Knocked back. 08463_ Penetrated by Slug. 08464_ Acquired 6 matter. 08465_ Knocked back. 08465_ Penetrated by Slug. 08465_ Slug penetrates B-99 Colossus. 08465_ Slug penetrates Reinforced Barrier. 08467_ Knocked back. Map ----- +----------------------------------------------------+ | ?????????????????????????????????????????????????? | | ?????????????????????????????????????????????????? | | ?????????????????????????????????????????????????? | | ?????????????????????????????????????????????????? | | ?????????????????????????????????????????????????? | | ?????????????????????????????????????????????????? | | ?????????????????????????????????????????????????? | | ?????????????????????????????????????????????????? | | ?????????????????????????????????????????????????? | | ?????????????????????????????????????????????????? | | ?????????????????????????????????????????????????? | | ?????????????????????????????????????????????????? | | ?????????????????????????????????????????????????? | | ?????????????????????????????????????????????????? | | ?????????????????????????????????????????????????? | | ?????????????????????????????????????????????????? | | ?????????????????????????????????????????????????? | | ?????????????????????????????????????????????????? | | ??????????????????#########??????????????????????? | | ??????????????????# "??????????????????????? | | ?????????????????## BB "??????????????????????? | | ????#####;########; BB "??????????????????????? | | ???## "??????????????????????? | | ???#; % "??????????????????????? | | ????# %p % "??????????????????????? | | ????# p % @"??????????????????????? | | ????# ##"###+### % BB%"??????????????????????? | | ????# ## # BB "??????????????????????? | | ????# ## # "??????????????????????? | | ????# ## #########??????????????????????? | | ????# ## #??????????????????????????????? | | ????# ## #??????????????????????????????? | | ????# ## #??????????????????????????????? | | ????# ## #??????????????????????????????? | | ????# ## #??????????????????????????????? | | ##### ## #??????????????????????????????? | | ## #??????????????????????????????? | | ## " #??????????????????????????????? | | ## """ #??????????????????????????????? | | ## G #??????????????????????????????? | | ######### """ #??????????????????????????????? | | # # " #??????????????????????????????? | | # # ! #??????????????????????????????? | | # # #??????????????????????????????? | | # #########????????????????"?????????????? | | + #???????????????????????"""????????????? | | # #????????????????????????"""???????????? | | # #?????????????????????????"????????????? | | # #??????????????????????????????????????? | | + #??????????????????????????????????????? | +----------------------------------------------------+ Best States ------------- Heat Dissipation 52 Energy Generation 31 Energy Capacity 265 Matter Stores 300 Matter Capacity 300 Sight Range 22 Terrain Scan Range 20 Terrain Scan Density 310 Armor Coverage 225 Resistance: KI 20 Resistance: EM 15 Weapon Shielding 66 Evasion (%) 64 Targeting Accuracy 8 Recoil Reduction 4 Offensive Hacking 48 Defensive Hacking 38 Item Schematics ----------------- Surge Thruster | -8/Materials | Scanalyzed Imp. Hacking Suite | -6/Factory | Hacked Imp. System Shield | -6/Factory | Hacked Combat Drone Bay | -6/Data Miner | Free Lgt. Regenerative Plating | -6/Data Miner | Free Enh. Flexi-carbon Leg | -6/Data Miner | Free Prc. Energy Filter | -6/Data Miner | Free Enh. Coil Gun | -6/Data Miner | Free Field Propulsion Array | -6/Data Miner | Free Quantum Capacitor | -6/Data Miner | Free HERF Cannon | -6/Data Miner | Free Field Propulsion Drive | -6/Data Miner | Free Imp. Heavy Treads | -6/Data Miner | Free Lrn. Sensor Array | -6/Data Miner | Free Hvy. Linear Accelerator | -6/Data Miner | Free Adv. Force Field | -6/Data Miner | Free Adv. Hacking Suite | -5/Factory | Hacked Robot Schematics ------------------ A-15 Conveyor | -6/Data Miner | Free G-50 Soldier | -6/Data Miner | Free P-60 Hacker | -6/Data Miner | Free H-66 Slayer | -6/Data Miner | Free B-48 Gladiator | -6/Data Miner | Free Fabricated ------------ Surge Thruster | x2 | -6/Factory Field Propulsion Array | x1 | -5/Factory Adv. Hacking Suite | x1 | -5/Factory Combat Drone Bay | x1 | -2/Research Alien Tech Used ----------------- None Achievements -------------- None Challenges ------------ None Game ------ Seed PulseMachineDetonator Manual? 0 Play Time 01:10:58 Cumulative 101.6 hours Start 2024.08.18 @ 18:10:37 End 2024.08.18 @ 19:23:18 Sessions 1 Manual Loads 0 Difficulty Rogue Special Mode None Game No. 173 Rogue 172 Adventurer 1 Explorer 0 Win Type - Total 0 Types 0/0/0/0/0/0/0/0/0 Lore% 59 Gallery% 63 Achievement% 48 Wizard Run 0 Options --------- Layout 1 ASCII 0 Keyboard 0 Movement Mouse Keybinds 0 Fullscreen 2 Font 20/SmallcapsGlow Map View 54x42 Zoom Use 0% Tactical HUD 1 Map Filters NONE Filters NONE Steam 0 RUN: 8b1fb60e-b50d-46ad-9649-c97cfda2562b